{"text_format":"1","workbook":"xlsx","n_sheets":1,"sheets":["LaRouche"],"not_rendered":{"charts":0,"images":0,"macros":1,"external_links":0,"defined_names":2,"comments":0,"pivot_tables":0},"unopened":[],"bounds":{"document_bytes":16777216,"sheet_cells":100000,"rows_first":2000,"rows_last":500,"rows_between":2000,"halvings":0,"cell_chars":16384,"cell_head_chars":4096},"cells_cut":0,"cells_raw":0,"read":"whole","date_system":"1900"}

{"sheet":"LaRouche","index":0,"n_rows":34,"n_cols":12,"rows_kept":34,"cut":false,"hidden":false,"merged":[]}
[null,null,null,"bitcoin",null,null,null,null,"https://www.google.com/search?q=",null,null,{"$f":"$D$33","v":"site:21sci-tech.com"}]
["First","Last","xKEYWORDx","constructor","altConstructor","Label","Query1","TextOuput","Query2","HyperLink"]
["Richard","Freeman",{"$f":"$D$1","v":"bitcoin"},{"$f":"_xlfn.CONCAT(\"'\",T_LaRSearches[[#This Row],[First]],\"%2B\",T_LaRSearches[[#This Row],[Last]],\"%2B%s'%20\")","v":"'Richard%2BFreeman%2B%s'%20"},{"$f":"_xlfn.CONCAT(\"'\",T_LaRSearches[[#This Row],[First]],\"%2B\",T_LaRSearches[[#This Row],[Last]],\"%2B\",T_LaRSearches[[#This Row],[xKEYWORDx]],\"'%20\")","v":"'Richard%2BFreeman%2Bbitcoin'%20"},{"$f":"_xlfn.CONCAT(\"LaR + \",T_LaRSearches[[#This Row],[First]],\" \",T_LaRSearches[[#This Row],[Last]])","v":"LaR + Richard Freeman"},{"$f":"_xlfn.TEXTJOIN(\"\",TRUE,$I$1,T_LaRSearches[[#This Row],[constructor]],LaRouche!$D$33)","v":"https://www.google.com/search?q='Richard%2BFreeman%2B%s'%20site:21sci-tech.com"},{"$f":"T_LaRSearches[[#This Row],[Query1]]","v":"https://www.google.com/search?q='Richard%2BFreeman%2B%s'%20site:21sci-tech.com"},{"$f":"_xlfn.TEXTJOIN(\"\",TRUE,$I$1,T_LaRSearches[[#This Row],[altConstructor]],LaRouche!$D$33)","v":"https://www.google.com/search?q='Richard%2BFreeman%2Bbitcoin'%20site:21sci-tech.com"},{"$f":"HYPERLINK(T_LaRSearches[[#This Row],[Query2]])","v":"https://www.google.com/search?q='Richard%2BFreeman%2Bbitcoin'%20site:21sci-tech.com"}]
["Helga","Zepp-LaRouche",{"$f":"$D$1","v":"bitcoin"},{"$f":"_xlfn.CONCAT(\"'\",T_LaRSearches[[#This Row],[First]],\"%2B\",T_LaRSearches[[#This Row],[Last]],\"%2B%s'%20\")","v":"'Helga%2BZepp-LaRouche%2B%s'%20"},{"$f":"_xlfn.CONCAT(\"'\",T_LaRSearches[[#This Row],[First]],\"%2B\",T_LaRSearches[[#This Row],[Last]],\"%2B\",T_LaRSearches[[#This Row],[xKEYWORDx]],\"'%20\")","v":"'Helga%2BZepp-LaRouche%2Bbitcoin'%20"},{"$f":"_xlfn.CONCAT(\"LaR + \",T_LaRSearches[[#This Row],[First]],\" \",T_LaRSearches[[#This Row],[Last]])","v":"LaR + Helga Zepp-LaRouche"},{"$f":"_xlfn.TEXTJOIN(\"\",TRUE,$I$1,T_LaRSearches[[#This Row],[constructor]],LaRouche!$D$33)","v":"https://www.google.com/search?q='Helga%2BZepp-LaRouche%2B%s'%20site:21sci-tech.com"},{"$f":"T_LaRSearches[[#This Row],[Query1]]","v":"https://www.google.com/search?q='Helga%2BZepp-LaRouche%2B%s'%20site:21sci-tech.com"},{"$f":"_xlfn.TEXTJOIN(\"\",TRUE,$I$1,T_LaRSearches[[#This Row],[altConstructor]],LaRouche!$D$33)","v":"https://www.google.com/search?q='Helga%2BZepp-LaRouche%2Bbitcoin'%20site:21sci-tech.com"},{"$f":"HYPERLINK(T_LaRSearches[[#This Row],[Query2]])","v":"https://www.google.com/search?q='Helga%2BZepp-LaRouche%2Bbitcoin'%20site:21sci-tech.com"}]
["Dennis","Speed",{"$f":"$D$1","v":"bitcoin"},{"$f":"_xlfn.CONCAT(\"'\",T_LaRSearches[[#This Row],[First]],\"%2B\",T_LaRSearches[[#This Row],[Last]],\"%2B%s'%20\")","v":"'Dennis%2BSpeed%2B%s'%20"},{"$f":"_xlfn.CONCAT(\"'\",T_LaRSearches[[#This Row],[First]],\"%2B\",T_LaRSearches[[#This Row],[Last]],\"%2B\",T_LaRSearches[[#This Row],[xKEYWORDx]],\"'%20\")","v":"'Dennis%2BSpeed%2Bbitcoin'%20"},{"$f":"_xlfn.CONCAT(\"LaR + \",T_LaRSearches[[#This Row],[First]],\" \",T_LaRSearches[[#This Row],[Last]])","v":"LaR + Dennis Speed"},{"$f":"_xlfn.TEXTJOIN(\"\",TRUE,$I$1,T_LaRSearches[[#This Row],[constructor]],LaRouche!$D$33)","v":"https://www.google.com/search?q='Dennis%2BSpeed%2B%s'%20site:21sci-tech.com"},{"$f":"T_LaRSearches[[#This Row],[Query1]]","v":"https://www.google.com/search?q='Dennis%2BSpeed%2B%s'%20site:21sci-tech.com"},{"$f":"_xlfn.TEXTJOIN(\"\",TRUE,$I$1,T_LaRSearches[[#This Row],[altConstructor]],LaRouche!$D$33)","v":"https://www.google.com/search?q='Dennis%2BSpeed%2Bbitcoin'%20site:21sci-tech.com"},{"$f":"HYPERLINK(T_LaRSearches[[#This Row],[Query2]])","v":"https://www.google.com/search?q='Dennis%2BSpeed%2Bbitcoin'%20site:21sci-tech.com"}]
["Dennis","Small",{"$f":"$D$1","v":"bitcoin"},{"$f":"_xlfn.CONCAT(\"'\",T_LaRSearches[[#This Row],[First]],\"%2B\",T_LaRSearches[[#This Row],[Last]],\"%2B%s'%20\")","v":"'Dennis%2BSmall%2B%s'%20"},{"$f":"_xlfn.CONCAT(\"'\",T_LaRSearches[[#This Row],[First]],\"%2B\",T_LaRSearches[[#This Row],[Last]],\"%2B\",T_LaRSearches[[#This Row],[xKEYWORDx]],\"'%20\")","v":"'Dennis%2BSmall%2Bbitcoin'%20"},{"$f":"_xlfn.CONCAT(\"LaR + \",T_LaRSearches[[#This Row],[First]],\" \",T_LaRSearches[[#This Row],[Last]])","v":"LaR + Dennis Small"},{"$f":"_xlfn.TEXTJOIN(\"\",TRUE,$I$1,T_LaRSearches[[#This Row],[constructor]],LaRouche!$D$33)","v":"https://www.google.com/search?q='Dennis%2BSmall%2B%s'%20site:21sci-tech.com"},{"$f":"T_LaRSearches[[#This Row],[Query1]]","v":"https://www.google.com/search?q='Dennis%2BSmall%2B%s'%20site:21sci-tech.com"},{"$f":"_xlfn.TEXTJOIN(\"\",TRUE,$I$1,T_LaRSearches[[#This Row],[altConstructor]],LaRouche!$D$33)","v":"https://www.google.com/search?q='Dennis%2BSmall%2Bbitcoin'%20site:21sci-tech.com"},{"$f":"HYPERLINK(T_LaRSearches[[#This Row],[Query2]])","v":"https://www.google.com/search?q='Dennis%2BSmall%2Bbitcoin'%20site:21sci-tech.com"}]
["Jeff","Steinberg",{"$f":"$D$1","v":"bitcoin"},{"$f":"_xlfn.CONCAT(\"'\",T_LaRSearches[[#This Row],[First]],\"%2B\",T_LaRSearches[[#This Row],[Last]],\"%2B%s'%20\")","v":"'Jeff%2BSteinberg%2B%s'%20"},{"$f":"_xlfn.CONCAT(\"'\",T_LaRSearches[[#This Row],[First]],\"%2B\",T_LaRSearches[[#This Row],[Last]],\"%2B\",T_LaRSearches[[#This Row],[xKEYWORDx]],\"'%20\")","v":"'Jeff%2BSteinberg%2Bbitcoin'%20"},{"$f":"_xlfn.CONCAT(\"LaR + \",T_LaRSearches[[#This Row],[First]],\" \",T_LaRSearches[[#This Row],[Last]])","v":"LaR + Jeff Steinberg"},{"$f":"_xlfn.TEXTJOIN(\"\",TRUE,$I$1,T_LaRSearches[[#This Row],[constructor]],LaRouche!$D$33)","v":"https://www.google.com/search?q='Jeff%2BSteinberg%2B%s'%20site:21sci-tech.com"},{"$f":"T_LaRSearches[[#This Row],[Query1]]","v":"https://www.google.com/search?q='Jeff%2BSteinberg%2B%s'%20site:21sci-tech.com"},{"$f":"_xlfn.TEXTJOIN(\"\",TRUE,$I$1,T_LaRSearches[[#This Row],[altConstructor]],LaRouche!$D$33)","v":"https://www.google.com/search?q='Jeff%2BSteinberg%2Bbitcoin'%20site:21sci-tech.com"},{"$f":"HYPERLINK(T_LaRSearches[[#This Row],[Query2]])","v":"https://www.google.com/search?q='Jeff%2BSteinberg%2Bbitcoin'%20site:21sci-tech.com"}]
["John","Hoefle",{"$f":"$D$1","v":"bitcoin"},{"$f":"_xlfn.CONCAT(\"'\",T_LaRSearches[[#This Row],[First]],\"%2B\",T_LaRSearches[[#This Row],[Last]],\"%2B%s'%20\")","v":"'John%2BHoefle%2B%s'%20"},{"$f":"_xlfn.CONCAT(\"'\",T_LaRSearches[[#This Row],[First]],\"%2B\",T_LaRSearches[[#This Row],[Last]],\"%2B\",T_LaRSearches[[#This Row],[xKEYWORDx]],\"'%20\")","v":"'John%2BHoefle%2Bbitcoin'%20"},{"$f":"_xlfn.CONCAT(\"LaR + \",T_LaRSearches[[#This Row],[First]],\" \",T_LaRSearches[[#This Row],[Last]])","v":"LaR + John Hoefle"},{"$f":"_xlfn.TEXTJOIN(\"\",TRUE,$I$1,T_LaRSearches[[#This Row],[constructor]],LaRouche!$D$33)","v":"https://www.google.com/search?q='John%2BHoefle%2B%s'%20site:21sci-tech.com"},{"$f":"T_LaRSearches[[#This Row],[Query1]]","v":"https://www.google.com/search?q='John%2BHoefle%2B%s'%20site:21sci-tech.com"},{"$f":"_xlfn.TEXTJOIN(\"\",TRUE,$I$1,T_LaRSearches[[#This Row],[altConstructor]],LaRouche!$D$33)","v":"https://www.google.com/search?q='John%2BHoefle%2Bbitcoin'%20site:21sci-tech.com"},{"$f":"HYPERLINK(T_LaRSearches[[#This Row],[Query2]])","v":"https://www.google.com/search?q='John%2BHoefle%2Bbitcoin'%20site:21sci-tech.com"}]
["Megan","Dobrodt",{"$f":"$D$1","v":"bitcoin"},{"$f":"_xlfn.CONCAT(\"'\",T_LaRSearches[[#This Row],[First]],\"%2B\",T_LaRSearches[[#This Row],[Last]],\"%2B%s'%20\")","v":"'Megan%2BDobrodt%2B%s'%20"},{"$f":"_xlfn.CONCAT(\"'\",T_LaRSearches[[#This Row],[First]],\"%2B\",T_LaRSearches[[#This Row],[Last]],\"%2B\",T_LaRSearches[[#This Row],[xKEYWORDx]],\"'%20\")","v":"'Megan%2BDobrodt%2Bbitcoin'%20"},{"$f":"_xlfn.CONCAT(\"LaR + \",T_LaRSearches[[#This Row],[First]],\" \",T_LaRSearches[[#This Row],[Last]])","v":"LaR + Megan Dobrodt"},{"$f":"_xlfn.TEXTJOIN(\"\",TRUE,$I$1,T_LaRSearches[[#This Row],[constructor]],LaRouche!$D$33)","v":"https://www.google.com/search?q='Megan%2BDobrodt%2B%s'%20site:21sci-tech.com"},{"$f":"T_LaRSearches[[#This Row],[Query1]]","v":"https://www.google.com/search?q='Megan%2BDobrodt%2B%s'%20site:21sci-tech.com"},{"$f":"_xlfn.TEXTJOIN(\"\",TRUE,$I$1,T_LaRSearches[[#This Row],[altConstructor]],LaRouche!$D$33)","v":"https://www.google.com/search?q='Megan%2BDobrodt%2Bbitcoin'%20site:21sci-tech.com"},{"$f":"HYPERLINK(T_LaRSearches[[#This Row],[Query2]])","v":"https://www.google.com/search?q='Megan%2BDobrodt%2Bbitcoin'%20site:21sci-tech.com"}]
["Megan","Beets",{"$f":"$D$1","v":"bitcoin"},{"$f":"_xlfn.CONCAT(\"'\",T_LaRSearches[[#This Row],[First]],\"%2B\",T_LaRSearches[[#This Row],[Last]],\"%2B%s'%20\")","v":"'Megan%2BBeets%2B%s'%20"},{"$f":"_xlfn.CONCAT(\"'\",T_LaRSearches[[#This Row],[First]],\"%2B\",T_LaRSearches[[#This Row],[Last]],\"%2B\",T_LaRSearches[[#This Row],[xKEYWORDx]],\"'%20\")","v":"'Megan%2BBeets%2Bbitcoin'%20"},{"$f":"_xlfn.CONCAT(\"LaR + \",T_LaRSearches[[#This Row],[First]],\" \",T_LaRSearches[[#This Row],[Last]])","v":"LaR + Megan Beets"},{"$f":"_xlfn.TEXTJOIN(\"\",TRUE,$I$1,T_LaRSearches[[#This Row],[constructor]],LaRouche!$D$33)","v":"https://www.google.com/search?q='Megan%2BBeets%2B%s'%20site:21sci-tech.com"},{"$f":"T_LaRSearches[[#This Row],[Query1]]","v":"https://www.google.com/search?q='Megan%2BBeets%2B%s'%20site:21sci-tech.com"},{"$f":"_xlfn.TEXTJOIN(\"\",TRUE,$I$1,T_LaRSearches[[#This Row],[altConstructor]],LaRouche!$D$33)","v":"https://www.google.com/search?q='Megan%2BBeets%2Bbitcoin'%20site:21sci-tech.com"},{"$f":"HYPERLINK(T_LaRSearches[[#This Row],[Query2]])","v":"https://www.google.com/search?q='Megan%2BBeets%2Bbitcoin'%20site:21sci-tech.com"}]
["Marcia","Merry Baker",{"$f":"$D$1","v":"bitcoin"},{"$f":"_xlfn.CONCAT(\"'\",T_LaRSearches[[#This Row],[First]],\"%2B\",T_LaRSearches[[#This Row],[Last]],\"%2B%s'%20\")","v":"'Marcia%2BMerry Baker%2B%s'%20"},{"$f":"_xlfn.CONCAT(\"'\",T_LaRSearches[[#This Row],[First]],\"%2B\",T_LaRSearches[[#This Row],[Last]],\"%2B\",T_LaRSearches[[#This Row],[xKEYWORDx]],\"'%20\")","v":"'Marcia%2BMerry Baker%2Bbitcoin'%20"},{"$f":"_xlfn.CONCAT(\"LaR + \",T_LaRSearches[[#This Row],[First]],\" \",T_LaRSearches[[#This Row],[Last]])","v":"LaR + Marcia Merry Baker"},{"$f":"_xlfn.TEXTJOIN(\"\",TRUE,$I$1,T_LaRSearches[[#This Row],[constructor]],LaRouche!$D$33)","v":"https://www.google.com/search?q='Marcia%2BMerry Baker%2B%s'%20site:21sci-tech.com"},{"$f":"T_LaRSearches[[#This Row],[Query1]]","v":"https://www.google.com/search?q='Marcia%2BMerry Baker%2B%s'%20site:21sci-tech.com"},{"$f":"_xlfn.TEXTJOIN(\"\",TRUE,$I$1,T_LaRSearches[[#This Row],[altConstructor]],LaRouche!$D$33)","v":"https://www.google.com/search?q='Marcia%2BMerry Baker%2Bbitcoin'%20site:21sci-tech.com"},{"$f":"HYPERLINK(T_LaRSearches[[#This Row],[Query2]])","v":"https://www.google.com/search?q='Marcia%2BMerry Baker%2Bbitcoin'%20site:21sci-tech.com"}]
["Stewart","Battle",{"$f":"$D$1","v":"bitcoin"},{"$f":"_xlfn.CONCAT(\"'\",T_LaRSearches[[#This Row],[First]],\"%2B\",T_LaRSearches[[#This Row],[Last]],\"%2B%s'%20\")","v":"'Stewart%2BBattle%2B%s'%20"},{"$f":"_xlfn.CONCAT(\"'\",T_LaRSearches[[#This Row],[First]],\"%2B\",T_LaRSearches[[#This Row],[Last]],\"%2B\",T_LaRSearches[[#This Row],[xKEYWORDx]],\"'%20\")","v":"'Stewart%2BBattle%2Bbitcoin'%20"},{"$f":"_xlfn.CONCAT(\"LaR + \",T_LaRSearches[[#This Row],[First]],\" \",T_LaRSearches[[#This Row],[Last]])","v":"LaR + Stewart Battle"},{"$f":"_xlfn.TEXTJOIN(\"\",TRUE,$I$1,T_LaRSearches[[#This Row],[constructor]],LaRouche!$D$33)","v":"https://www.google.com/search?q='Stewart%2BBattle%2B%s'%20site:21sci-tech.com"},{"$f":"T_LaRSearches[[#This Row],[Query1]]","v":"https://www.google.com/search?q='Stewart%2BBattle%2B%s'%20site:21sci-tech.com"},{"$f":"_xlfn.TEXTJOIN(\"\",TRUE,$I$1,T_LaRSearches[[#This Row],[altConstructor]],LaRouche!$D$33)","v":"https://www.google.com/search?q='Stewart%2BBattle%2Bbitcoin'%20site:21sci-tech.com"},{"$f":"HYPERLINK(T_LaRSearches[[#This Row],[Query2]])","v":"https://www.google.com/search?q='Stewart%2BBattle%2Bbitcoin'%20site:21sci-tech.com"}]
["Jason","Ross",{"$f":"$D$1","v":"bitcoin"},{"$f":"_xlfn.CONCAT(\"'\",T_LaRSearches[[#This Row],[First]],\"%2B\",T_LaRSearches[[#This Row],[Last]],\"%2B%s'%20\")","v":"'Jason%2BRoss%2B%s'%20"},{"$f":"_xlfn.CONCAT(\"'\",T_LaRSearches[[#This Row],[First]],\"%2B\",T_LaRSearches[[#This Row],[Last]],\"%2B\",T_LaRSearches[[#This Row],[xKEYWORDx]],\"'%20\")","v":"'Jason%2BRoss%2Bbitcoin'%20"},{"$f":"_xlfn.CONCAT(\"LaR + \",T_LaRSearches[[#This Row],[First]],\" \",T_LaRSearches[[#This Row],[Last]])","v":"LaR + Jason Ross"},{"$f":"_xlfn.TEXTJOIN(\"\",TRUE,$I$1,T_LaRSearches[[#This Row],[constructor]],LaRouche!$D$33)","v":"https://www.google.com/search?q='Jason%2BRoss%2B%s'%20site:21sci-tech.com"},{"$f":"T_LaRSearches[[#This Row],[Query1]]","v":"https://www.google.com/search?q='Jason%2BRoss%2B%s'%20site:21sci-tech.com"},{"$f":"_xlfn.TEXTJOIN(\"\",TRUE,$I$1,T_LaRSearches[[#This Row],[altConstructor]],LaRouche!$D$33)","v":"https://www.google.com/search?q='Jason%2BRoss%2Bbitcoin'%20site:21sci-tech.com"},{"$f":"HYPERLINK(T_LaRSearches[[#This Row],[Query2]])","v":"https://www.google.com/search?q='Jason%2BRoss%2Bbitcoin'%20site:21sci-tech.com"}]
["Lyndon","LaRouche",{"$f":"$D$1","v":"bitcoin"},{"$f":"_xlfn.CONCAT(\"'\",T_LaRSearches[[#This Row],[First]],\"%2B\",T_LaRSearches[[#This Row],[Last]],\"%2B%s'%20\")","v":"'Lyndon%2BLaRouche%2B%s'%20"},{"$f":"_xlfn.CONCAT(\"'\",T_LaRSearches[[#This Row],[First]],\"%2B\",T_LaRSearches[[#This Row],[Last]],\"%2B\",T_LaRSearches[[#This Row],[xKEYWORDx]],\"'%20\")","v":"'Lyndon%2BLaRouche%2Bbitcoin'%20"},{"$f":"_xlfn.CONCAT(\"LaR + \",T_LaRSearches[[#This Row],[First]],\" \",T_LaRSearches[[#This Row],[Last]])","v":"LaR + Lyndon LaRouche"},{"$f":"_xlfn.TEXTJOIN(\"\",TRUE,$I$1,T_LaRSearches[[#This Row],[constructor]],LaRouche!$D$33)","v":"https://www.google.com/search?q='Lyndon%2BLaRouche%2B%s'%20site:21sci-tech.com"},{"$f":"T_LaRSearches[[#This Row],[Query1]]","v":"https://www.google.com/search?q='Lyndon%2BLaRouche%2B%s'%20site:21sci-tech.com"},{"$f":"_xlfn.TEXTJOIN(\"\",TRUE,$I$1,T_LaRSearches[[#This Row],[altConstructor]],LaRouche!$D$33)","v":"https://www.google.com/search?q='Lyndon%2BLaRouche%2Bbitcoin'%20site:21sci-tech.com"},{"$f":"HYPERLINK(T_LaRSearches[[#This Row],[Query2]])","v":"https://www.google.com/search?q='Lyndon%2BLaRouche%2Bbitcoin'%20site:21sci-tech.com"}]
["Matthew","Ehret",{"$f":"$D$1","v":"bitcoin"},{"$f":"_xlfn.CONCAT(\"'\",T_LaRSearches[[#This Row],[First]],\"%2B\",T_LaRSearches[[#This Row],[Last]],\"%2B%s'%20\")","v":"'Matthew%2BEhret%2B%s'%20"},{"$f":"_xlfn.CONCAT(\"'\",T_LaRSearches[[#This Row],[First]],\"%2B\",T_LaRSearches[[#This Row],[Last]],\"%2B\",T_LaRSearches[[#This Row],[xKEYWORDx]],\"'%20\")","v":"'Matthew%2BEhret%2Bbitcoin'%20"},{"$f":"_xlfn.CONCAT(\"LaR + \",T_LaRSearches[[#This Row],[First]],\" \",T_LaRSearches[[#This Row],[Last]])","v":"LaR + Matthew Ehret"},{"$f":"_xlfn.TEXTJOIN(\"\",TRUE,$I$1,T_LaRSearches[[#This Row],[constructor]],LaRouche!$D$33)","v":"https://www.google.com/search?q='Matthew%2BEhret%2B%s'%20site:21sci-tech.com"},{"$f":"T_LaRSearches[[#This Row],[Query1]]","v":"https://www.google.com/search?q='Matthew%2BEhret%2B%s'%20site:21sci-tech.com"},{"$f":"_xlfn.TEXTJOIN(\"\",TRUE,$I$1,T_LaRSearches[[#This Row],[altConstructor]],LaRouche!$D$33)","v":"https://www.google.com/search?q='Matthew%2BEhret%2Bbitcoin'%20site:21sci-tech.com"},{"$f":"HYPERLINK(T_LaRSearches[[#This Row],[Query2]])","v":"https://www.google.com/search?q='Matthew%2BEhret%2Bbitcoin'%20site:21sci-tech.com"}]
[]
[null,null,null,"CleanSite","DomainsToSearch"]
[null,null,null,"larouchelibrary.org",{"$f":"_xlfn.CONCAT(\"site:\",T_sites[[#This Row],[CleanSite]])","v":"site:larouchelibrary.org"}]
[null,null,null,"eir.news",{"$f":"_xlfn.CONCAT(\"site:\",T_sites[[#This Row],[CleanSite]])","v":"site:eir.news"}]
[null,null,null,"larouchepub.com",{"$f":"_xlfn.CONCAT(\"site:\",T_sites[[#This Row],[CleanSite]])","v":"site:larouchepub.com"}]
[null,null,null,"21sci-tech.com",{"$f":"_xlfn.CONCAT(\"site:\",T_sites[[#This Row],[CleanSite]])","v":"site:21sci-tech.com"}]
[null,null,null,"executiveintelligencereview.com",{"$f":"_xlfn.CONCAT(\"site:\",T_sites[[#This Row],[CleanSite]])","v":"site:executiveintelligencereview.com"}]
[null,null,null,"schillerinstitute.com",{"$f":"_xlfn.CONCAT(\"site:\",T_sites[[#This Row],[CleanSite]])","v":"site:schillerinstitute.com"}]
[null,null,null,"archive.schillerinstitute.com",{"$f":"_xlfn.CONCAT(\"site:\",T_sites[[#This Row],[CleanSite]])","v":"site:archive.schillerinstitute.com"}]
[null,null,null,"laroucheorganization.com",{"$f":"_xlfn.CONCAT(\"site:\",T_sites[[#This Row],[CleanSite]])","v":"site:laroucheorganization.com"}]
[null,null,null,"solidariteetprogres.fr",{"$f":"_xlfn.CONCAT(\"site:\",T_sites[[#This Row],[CleanSite]])","v":"site:solidariteetprogres.fr"}]
[null,null,null,"committeerepubliccanada.ca",{"$f":"_xlfn.CONCAT(\"site:\",T_sites[[#This Row],[CleanSite]])","v":"site:committeerepubliccanada.ca"}]
[null,null,null,"risingtidefoundation.net",{"$f":"_xlfn.CONCAT(\"site:\",T_sites[[#This Row],[CleanSite]])","v":"site:risingtidefoundation.net"}]
[null,null,null,"canadianpatriot.org",{"$f":"_xlfn.CONCAT(\"site:\",T_sites[[#This Row],[CleanSite]])","v":"site:canadianpatriot.org"}]
[null,null,null,"lymcanada.org",{"$f":"_xlfn.CONCAT(\"site:\",T_sites[[#This Row],[CleanSite]])","v":"site:lymcanada.org"}]
[]
[]
[null,null,null,{"$f":"_xlfn.TEXTJOIN(\"+|+\", TRUE, _xlfn._xlws.FILTER(E18:E30, SUBTOTAL(103, OFFSET(E18, ROW(E18:E30)-ROW(E18), 0))))","v":"site:21sci-tech.com"}]
[null,null,null,{"$f":"$D$33","v":"site:21sci-tech.com"}]